bitfinex-derivatives/quotes_SOLF0:USTF0_20250307
["timestamp","ask_amount","ask_price","bid_price","bid_amount"]
[1741365562825,0.04636923,143.38,143.37,6.9748]
[1741365563014,0.04636923,143.38,143.36,38.18376531]
[1741365563620,41.84,143.45,143.36,38.18376531]
[1741365563827,3.8794,143.49,143.39,38.18376531]
[1741365564013,3.8794,143.49,143.39,80.02376531]
[1741365564420,3.8794,143.49,143.4,3.7495]
[1741365564614,0.04733845,143.46,143.43,0.05200018]
[1741365564918,41.86733845,143.46,143.34,209.22]
[1741365565125,41.82,143.46,143.33,38.18376531]
[1741365565322,6.9737,143.4,143.33,38.18376531]
[1741365565522,41.82,143.41,143.33,38.18376531]
[1741365565919,0.05146459,143.38,143.36,0.04614538]
[1741365566830,0.05146459,143.38,143.26,1.21396055]
[1741365566831,0.05146459,143.38,143.26,39.39772586]
[1741365567121,38.18376531,143.37,143.23,45.91806531]
[1741365567323,38.18376531,143.34,143.23,7.7343]
[1741365567525,6.9799,143.27,143.23,7.7343]
[1741365567720,41.82,143.3,143.23,7.7343]
[1741365567923,6.9809,143.25,143.24,0.04851258]
[1741365568126,0.04638877,143.26,143.24,0.04851258]
[1741365568526,41.82,143.25,143.15,38.18376531]
[1741365568825,41.82,143.25,143.12,38.18376531]
[1741365569132,41.82,143.25,143.15,38.18376531]
[1741365569133,6.9815,143.24,143.15,38.18376531]
[1741365569332,41.82,143.25,143.11,3.718]
[1741365569630,0.04905698,143.21,143.18,0.05203966]
[1741365571034,0.04905698,143.21,143.18,38.23580497]
[1741365571233,0.04905698,143.21,143.2,6.9831]
[1741365571429,7.5346,143.29,143.18,38.23580497]
[1741365571430,49.3546,143.29,143.19,41.82]
[1741365571631,49.3546,143.29,143.22,38.18376531]
[1741365571833,41.82,143.29,143.22,38.18376531]
[1741365572135,41.82,143.34,143.25,38.18376531]
[1741365572339,48.7967,143.34,143.27,6.9795]
[1741365572533,0.0483543,143.31,143.28,0.04917743]
[1741365572928,0.0483543,143.31,143.3,6.9782]
[1741365573949,0.0483543,143.31,143.28,0.04917743]
[1741365575147,0.0483543,143.31,143.29,6.9785]
[1741365575445,0.0483543,143.31,143.28,0.04917743]
[1741365575951,0.0483543,143.31,143.3,6.9782]
[1741365576244,3.9745,143.38,143.3,38.18376531]
[1741365576438,3.9745,143.38,143.35,6.9754]
[1741365576640,10.9488,143.38,143.3,38.18376531]
[1741365577047,3.9745,143.38,143.3,38.18376531]
[1741365577235,6.9749,143.37,143.3,38.18376531]
[1741365577441,0.05173343,143.35,143.33,0.04566666]
[1741365578053,3.343e-05,143.35,143.33,38.22943197]
[1741365578245,45.7534,143.43,143.33,38.22943197]
[1741365578449,45.7534,143.43,143.33,38.18376531]
[1741365578654,45.7534,143.43,143.4,6.9729]
[1741365578942,45.7534,143.43,143.36,38.18376531]
[1741365579142,45.7534,143.43,143.4,6.9733]
[1741365579345,0.05193043,143.41,143.38,0.04403014]
[1741365579742,0.05193043,143.41,143.4,6.9733]
[1741365580947,0.05193043,143.41,143.39,38.18376531]
[1741365581547,0.05193043,143.41,143.4,6.9733]
[1741365581848,0.05193043,143.41,143.39,38.18376531]
[1741365582047,0.05193043,143.41,143.39,45.15746531]
[1741365582251,0.05193043,143.41,143.39,38.18376531]
[1741365582652,3.9534,143.49,143.39,38.18376531]
[1741365582653,45.7134,143.49,143.39,38.18376531]
[1741365583152,6.9732,143.41,143.36,41.95006531]
[1741365583456,41.76,143.44,143.36,38.18376531]
[1741365583659,41.76,143.43,143.36,38.18376531]
[1741365583957,0.04777395,143.41,143.39,0.04899647]
[1741365584150,41.76,143.44,143.36,38.18376531]
[1741365584351,0.05372109,143.41,143.39,0.04697445]
[1741365584848,0.05372109,143.41,143.3,5.2776]
[1741365585152,3.7435,143.43,143.29,79.92376531]
[1741365585353,3.7435,143.43,143.34,6.9759]
[1741365585545,3.7435,143.43,143.29,79.92376531]
[1741365585745,6.9744,143.38,143.33,6.9766]
[1741365585945,3.7435,143.43,143.29,79.92376531]
[1741365586247,0.04581523,143.37,143.34,0.04535909]
[1741365586449,41.74,143.38,143.29,79.92376531]
[1741365586652,0.04744931,143.37,143.34,0.04664335]
[1741365587949,0.04744931,143.37,143.26,38.18376531]
[1741365588144,3.8747,143.37,143.24,4.05]
[1741365588351,3.8747,143.37,143.26,38.18376531]
[1741365588550,6.9764,143.34,143.3,6.9779]
[1741365588850,3.8996,143.36,143.26,38.18376531]
[1741365589155,0.04607375,143.32,143.3,0.04645577]
[1741365589848,0.04607375,143.32,143.31,6.9777]
[1741365590049,0.04607375,143.32,143.3,0.04645577]
[1741365590854,0.04607375,143.32,143.31,6.9777]
[1741365591852,0.04607375,143.32,143.3,0.04645577]
[1741365592056,7.02367375,143.32,143.3,0.04645577]
[1741365592254,0.04607375,143.32,143.3,0.04645577]
[1741365592454,0.04607375,143.32,143.3,38.23022108]
[1741365592957,0.04607375,143.32,143.31,6.9777]
[1741365594452,0.04607375,143.32,143.3,45.20822108]
[1741365594655,7.02367375,143.32,143.3,0.04645577]
[1741365595662,0.04607375,143.32,143.3,0.04645577]
[1741365598459,0.04607375,143.32,143.31,6.9777]
[1741365600360,0.04607375,143.32,143.3,0.04645577]
[1741365602162,0.04607375,143.32,143.31,6.9777]
[1741365602458,0.04607375,143.32,143.3,0.04645577]
[1741365602659,0.04607375,143.32,143.3,7.02445577]
[1741365602965,0.04607375,143.32,143.3,0.04645577]
[1741365603358,0.04607375,143.32,143.31,6.9777]
[1741365603554,3.9528,143.4,143.31,41.66]
[1741365603765,3.9528,143.4,143.34,38.18376531]
[1741365604069,45.3227,143.45,143.34,38.18376531]
[1741365604268,7.9225,143.43,143.34,38.18376531]
[1741365604469,7.9225,143.43,143.31,289.22376531]
[1741365604861,0.04862034,143.38,143.36,0.05276172]
[1741365605165,6.9746,143.38,143.36,0.05276172]
[1741365605367,0.05350135,143.38,143.36,0.05276172]
[1741365605667,0.05350135,143.38,143.28,38.18376531]
[1741365605854,41.66,143.39,143.28,38.18376531]
[1741365606362,79.84376531,143.39,143.26,41.64]
[1741365606568,38.18376531,143.36,143.21,42.16906531]
[1741365606766,0.05101462,143.34,143.21,42.16906531]
[1741365606966,41.64,143.33,143.24,38.18376531]
[1741365607459,41.64,143.33,143.21,42.16906531]
[1741365607868,0.05172967,143.28,143.26,0.04663675]
[1741365608275,0.05172967,143.28,143.27,6.9796]
[1741365608472,0.05172967,143.28,143.27,45.16336531]
[1741365608965,0.05172967,143.28,143.26,0.04663675]
[1741365609362,6.9796,143.27,143.26,0.04663675]
[1741365610572,0.05172967,143.28,143.19,38.18376531]
[1741365610773,41.64,143.29,143.19,38.18376531]
[1741365611271,41.64,143.29,143.15,38.18376531]
[1741365611466,231.18376531,143.28,143.12,247.58376531]
[1741365611775,0.04735095,143.23,143.15,6.9853]
[1741365612072,6.9837,143.19,143.15,6.9853]
[1741365612472,79.80376531,143.22,143.04,209.4]
[1741365612769,79.80376531,143.22,143.08,38.18376531]
[1741365612966,0.04657642,143.15,143.13,0.05004988]
[1741365613166,41.62,143.14,143.06,105.25824509]
[1741365613362,3.7141,143.18,143.08,38.18376531]
[1741365614272,0.04812518,143.14,143.12,0.05311327]
[1741365615071,0.04812518,143.14,143.07,45.17306531]
[1741365615273,41.66812518,143.14,143.07,6.9893]
[1741365615578,5.57308378,143.13,143.1,6.9876]
[1741365616077,41.62,143.14,143.07,38.18376531]
[1741365616278,0.04520541,143.13,143.1,0.02203562]
[1741365617481,0.04520541,143.13,143.12,6.987]
[1741365617874,0.04520541,143.13,143.1,38.20580093]
[1741365618074,7.03170541,143.13,143.1,0.02203562]
[1741365618277,0.04520541,143.13,143.1,0.02203562]
[1741365619267,7.03200541,143.13,143.1,0.02203562]
[1741365619471,0.04520541,143.13,143.1,0.02203562]
[1741365620179,0.04520541,143.13,143.04,251.02]
[1741365620381,41.62,143.14,143.04,251.02]
[1741365620773,41.62,143.14,142.98,211.1601]
[1741365620972,38.18376531,143.13,143.03,6.9913]
[1741365621182,38.18376531,143.1,142.95,7.7621]
[1741365621388,38.18376531,143.07,142.95,7.7621]
[1741365621568,38.18376531,143.07,142.96,6.9944]
[1741365621768,0.05070609,143.02,142.92,70.18527753]
[1741365622774,0.05070609,143.02,142.92,41.6]
[1741365624283,0.05070609,143.02,142.91,49.3767]
[1741365624483,6.9932,143.0,142.91,49.3767]
[1741365624683,3.9169,143.02,142.91,49.3767]
[1741365624887,0.04921638,142.98,142.91,49.3767]
[1741365625079,1.638e-05,142.98,142.97,6.9939]
[1741365626085,1.638e-05,142.98,142.97,10.4939]
[1741365628079,3.9169,143.08,143.04,6.9905]
[1741365628280,3.9169,143.08,143.0,38.18376531]
[1741365628483,3.9169,143.08,142.96,65.25984388]
[1741365628685,3.9169,143.08,142.96,23.65984388]
[1741365628876,23.65984388,143.07,142.93,23.65984388]
[1741365629189,0.0483602,143.01,142.99,0.04489376]
[1741365629483,41.6,143.03,142.99,0.04489376]
[1741365629683,3.8638,143.02,142.99,0.04489376]
[1741365629994,6.9938,142.98,142.95,6.9952]
[1741365630187,7.7663,143.01,142.96,6.9945]
[1741365630390,7.7663,143.01,142.93,23.65984388]
[1741365630597,7.7663,143.01,142.93,38.46595347]
[1741365631186,0.04695864,142.98,142.96,6.9945]
[1741365631591,0.04695864,142.98,142.93,38.46595347]
[1741365632384,0.04695864,142.98,142.97,6.9943]
[1741365632990,3.9266,143.05,142.96,38.46595347]
[1741365633193,3.9266,143.05,142.99,38.46595347]
[1741365633395,41.58,143.06,142.99,38.46595347]
[1741365634090,48.5699,143.06,143.03,6.991]
[1741365634285,0.05358108,143.04,143.02,38.46595347]
[1741365634487,41.58,143.1,143.02,38.46595347]
[1741365634695,0.05053667,143.04,143.02,38.51000175]
[1741365634890,41.58,143.1,143.02,38.51000175]
[1741365635088,0.04431419,143.04,143.02,0.04404828]
[1741365635398,0.04775895,143.04,143.02,0.04404828]
[1741365636093,0.04775895,143.04,143.03,6.9914]
[1741365636285,0.04775895,143.04,143.02,0.04404828]
[1741365636698,0.04775895,143.04,143.02,7.03564828]
[1741365636899,0.04775895,143.04,143.02,0.04404828]
[1741365637401,0.04775895,143.04,143.02,7.03554828]
[1741365637700,0.04775895,143.04,143.02,0.04404828]
[1741365637893,5.895e-05,143.04,143.03,6.9914]
[1741365638988,7.6221,143.11,143.02,41.58404828]
[1741365639302,4.0592,143.16,143.05,38.46595347]
[1741365639486,4.0592,143.16,143.08,38.46595347]
[1741365639798,7.4442,143.17,143.11,38.46595347]
[1741365640191,7.03665258,143.15,143.13,0.05078524]
[1741365641187,0.05085258,143.15,143.13,0.05078524]
[1741365641688,0.05085258,143.15,143.14,6.986]
[1741365641884,5.258e-05,143.15,143.14,45.45195347]
[1741365643298,11.2218,143.25,143.17,38.46595347]
[1741365644202,11.2218,143.25,143.15,3.8147]
[1741365644398,0.04444422,143.22,143.2,0.04553565]
[1741365644596,0.04444422,143.22,143.14,248.18595347]
[1741365645600,0.04444422,143.22,143.17,0.04824198]
[1741365646595,6.984,143.18,143.17,0.04824198]
[1741365647396,0.04552957,143.19,143.17,0.04824198]
[1741365648902,0.04552957,143.19,143.18,6.984]
[1741365649498,0.04552957,143.19,143.17,0.04824198]
[1741365650001,7.02932957,143.19,143.17,0.04824198]
[1741365650296,0.04552957,143.19,143.17,0.04824198]
[1741365650501,6.984,143.18,143.17,0.04824198]
[1741365650695,0.04552957,143.19,143.17,0.04824198]
[1741365651093,0.04552957,143.19,143.18,6.984]
[1741365651295,0.04552957,143.19,143.17,0.04824198]
[1741365652100,7.02922957,143.19,143.17,0.04824198]
[1741365652406,0.04552957,143.19,143.17,0.04824198]
[1741365654409,0.04552957,143.19,143.18,6.984]
[1741365654612,0.04552957,143.19,143.17,0.04824198]
[1741365655014,6.984,143.18,143.17,0.04824198]
[1741365655312,0.04552957,143.19,143.17,0.04824198]
[1741365659909,6.984,143.18,143.17,0.04824198]
[1741365660109,0.04552957,143.19,143.17,0.04824198]
[1741365660505,3.54552957,143.19,143.08,209.68]
[1741365660714,27.39447719,143.18,143.04,3.7402]
[1741365660911,23.61187719,143.15,143.01,274.57187719]
[1741365661112,41.38,143.15,143.04,23.61187719]
[1741365661511,5.46859887,143.14,143.08,0.04730738]
[1741365661713,0.04810037,143.11,143.08,0.04730738]
[1741365663917,0.04810037,143.11,143.01,64.97187719]
[1741365664119,23.61187719,143.09,142.95,209.6]
[1741365664328,6.993,143.0,142.95,6.9951]
[1741365664511,41.36,142.99,142.9,76.67296756]
[1741365664713,64.97187719,142.99,142.9,76.67296756]
[1741365664914,41.36,142.98,142.9,76.67296756]
[1741365665119,0.04619828,142.96,142.88,23.61187719]
[1741365665319,0.04619828,142.96,142.91,23.61187719]
[1741365665720,5.45924683,142.98,142.94,23.61187719]
[1741365666026,3.7193,143.07,142.97,23.61187719]
[1741365666224,3.7193,143.07,142.94,23.61187719]
[1741365666525,32.78856108,143.07,142.93,23.61187719]
[1741365666729,23.61187719,143.04,142.9,23.61187719]
[1741365667027,0.05373376,143.01,142.99,0.05347635]
[1741365667330,0.05373376,143.01,142.99,0.05303924]
[1741365669127,0.05373376,143.01,142.92,23.61187719]
[1741365669326,6.9933,142.99,142.92,6.9964]
[1741365669526,3.8268,143.02,142.89,233.29187719]
[1741365669527,41.36,142.98,142.89,23.61187719]
[1741365669726,41.36,142.98,142.87,29.50397719]
[1741365669931,3.9865,142.97,142.87,23.61187719]
[1741365670329,0.05078713,142.93,142.89,6.9981]
[1741365670526,0.05078713,142.93,142.84,29.49107719]
[1741365670732,7.9422,142.97,142.87,23.61187719]
[1741365671033,0.04936716,142.9,142.87,23.61187719]
[1741365671332,0.04936716,142.9,142.85,3.821]
[1741365671333,0.04670934,142.9,142.86,23.61187719]
[1741365671527,0.04670934,142.9,142.83,209.74]
[1741365671830,0.04670934,142.9,142.83,233.35187719]
[1741365672135,0.04670934,142.9,142.86,23.61187719]
[1741365672329,0.04670934,142.9,142.89,6.9982]
[1741365673131,49.2822,142.97,142.89,23.61187719]
[1741365673326,49.2822,142.97,142.93,6.9959]
[1741365673733,41.34,142.97,142.95,6.9949]
[1741365673927,41.34,143.01,142.92,23.61187719]
[1741365674233,41.34,143.01,142.9,23.61187719]
[1741365674434,0.04889729,142.98,142.95,0.04867616]
[1741365674636,6.9968,142.92,142.86,38.50420132]
[1741365674834,41.34,142.94,142.86,38.50420132]
[1741365675436,41.34,142.94,142.89,6.9979]
[1741365675734,0.04623894,142.93,142.89,6.9979]
[1741365675928,0.04623894,142.93,142.9,6.9977]
[1741365676128,0.04623894,142.93,142.89,38.50420132]
[1741365676536,0.04623894,142.93,142.92,6.9967]
[1741365676739,3.894e-05,142.93,142.92,45.50090132]
[1741365677735,3.7989,143.0,142.92,45.50090132]
[1741365677736,3.7989,143.0,142.92,42.00420132]
[1741365678038,41.34,143.05,142.96,38.50420132]
[1741365678235,45.1993,143.05,142.96,38.50420132]
[1741365678940,0.05230802,143.02,142.99,0.04429156]
[1741365679333,0.05230802,143.02,143.01,6.9923]
[1741365679738,8.02e-06,143.02,143.01,6.9923]
[1741365680735,8.02e-06,143.02,142.99,38.54849288]
[1741365681741,8.02e-06,143.02,143.01,6.9923]
[1741365683538,8.02e-06,143.02,143.01,48.99650132]
[1741365684040,8.02e-06,143.02,143.01,10.4923]
[1741365684235,8.02e-06,143.02,143.01,6.9923]
[1741365684441,8.02e-06,143.02,143.01,10.4923]
[1741365684643,8.02e-06,143.02,143.01,48.2923]
[1741365686043,8.02e-06,143.02,143.01,51.7923]
[1741365686342,8.02e-06,143.02,143.01,48.2923]
[1741365689833,8.02e-06,143.02,143.01,51.7923]
[1741365690032,8.02e-06,143.02,143.01,90.29650132]
[1741365690240,3.8593,143.1,143.01,293.10420132]
[1741365690438,3.8593,143.1,143.04,38.50420132]
[1741365690638,6.9893,143.08,143.04,38.50420132]
[1741365690834,3.8593,143.1,143.02,6.9916]
[1741365691037,3.8593,143.1,143.01,289.60420132]
[1741365691240,0.05114345,143.07,143.01,289.60420132]
[1741365691438,0.05114345,143.07,143.05,0.05132408]
[1741365691639,6.9899,143.06,143.05,0.05132408]
[1741365693450,7.04074345,143.07,143.05,0.05132408]
[1741365693645,0.05114345,143.07,143.05,0.05132408]
[1741365694050,6.9899,143.06,143.05,0.05132408]
[1741365694250,0.05114345,143.07,143.05,0.05132408]
[1741365694548,4.345e-05,143.07,143.06,6.9899]
[1741365694750,4.345e-05,143.07,143.06,48.2099]
[1741365695951,4.345e-05,143.07,143.06,6.9899]
[1741365696644,4.345e-05,143.07,143.06,30.61825187]
[1741365697255,4.345e-05,143.07,143.06,6.9899]
[1741365698451,4.345e-05,143.07,143.06,30.61825187]
[1741365700846,4.345e-05,143.07,143.05,0.05132408]
[1741365701651,6.9899,143.06,143.05,0.05132408]
[1741365701852,4.345e-05,143.07,143.05,0.05132408]
[1741365702054,4.345e-05,143.07,143.05,7.04132408]
[1741365702550,4.345e-05,143.07,143.06,6.9899]
[1741365702955,48.9285,143.17,143.06,23.62835187]
[1741365703254,6.9867,143.13,143.06,23.62835187]
[1741365703649,9.30519823,143.16,143.06,23.62835187]
[1741365703855,6.9883,143.1,143.06,23.62835187]
[1741365704058,0.05363118,143.12,143.1,0.04723657]
[1741365704253,5.46934521,143.11,143.05,41.16]
[1741365704455,46.62934521,143.11,143.01,209.8]
[1741365704757,5.46934521,143.1,143.01,209.8]
[1741365705259,7.8678,143.09,143.01,209.8]
[1741365705461,6.9904,143.05,143.04,0.04955306]
[1741365706154,6.9922,143.02,142.97,23.62835187]
[1741365706365,29.09848039,143.05,142.94,23.62835187]
[1741365706661,4.0272,143.01,142.94,23.62835187]
[1741365706852,4.0272,143.01,142.95,6.9951]
[1741365707057,4.0272,143.01,142.94,23.62835187]
[1741365707358,7.04237561,142.99,142.97,0.05195476]
[1741365707559,0.04877561,142.99,142.97,0.05195476]
[1741365707954,0.04877561,142.99,142.98,6.9938]
[1741365708362,7.561e-05,142.99,142.98,6.9938]
[1741365709953,3.8406,143.09,142.97,23.68030663]
[1741365710256,5.4823132,143.08,143.0,23.62835187]
[1741365710657,5.4823132,143.07,143.04,6.9908]
[1741365710858,5.4823132,143.07,143.0,23.62835187]
[1741365711159,0.05171059,143.05,143.02,0.0444031]
[1741365711661,0.05171059,143.05,143.03,23.62835187]
[1741365711862,0.05171059,143.05,143.04,6.9909]
[1741365712565,0.05171059,143.05,143.02,0.0444031]
[1741365712959,0.05171059,143.05,143.03,23.62835187]
[1741365713257,0.05171059,143.05,143.04,6.9909]
[1741365714350,0.05171059,143.05,143.02,0.0444031]
[1741365715455,0.05171059,143.05,143.04,6.9909]
[1741365715656,1.059e-05,143.05,143.04,6.9909]
[1741365716756,1.059e-05,143.05,143.03,23.62835187]
[1741365717060,1.059e-05,143.05,143.02,0.0444031]
[1741365717456,1.059e-05,143.05,143.03,6.9914]
[1741365717663,1.059e-05,143.05,143.02,0.0444031]
[1741365718051,1.059e-05,143.05,143.04,6.9909]
[1741365720258,1.059e-05,143.05,143.04,30.61925187]
[1741365720458,1.059e-05,143.05,143.04,6.9909]
[1741365720959,1.059e-05,143.05,143.02,0.0444031]
[1741365721155,41.06,143.04,142.94,27.58395187]
[1741365721358,3.8107,143.03,142.91,173.85279696]
[1741365721562,3.8107,143.03,142.91,128.88659696]
[1741365721864,23.62835187,143.02,142.92,6.9966]
[1741365722053,6.9948,142.96,142.92,6.9966]
[1741365722255,0.05161113,142.95,142.93,0.04705616]
[1741365722861,0.05161113,142.95,142.94,6.9958]
[1741365723258,0.05161113,142.95,142.93,0.04705616]
[1741365724771,0.05161113,142.95,142.87,64.68835187]
[1741365725262,6.9969,142.92,142.87,30.62735187]
[1741365725465,5.49690243,142.94,142.84,23.62835187]
[1741365725466,54.12330243,142.94,142.84,23.62835187]
[1741365725763,0.05198142,142.9,142.88,0.05231043]
[1741365727860,0.05198142,142.9,142.89,6.9982]
[1741365728469,0.05198142,142.9,142.88,0.05231043]
[1741365728863,0.05198142,142.9,142.88,7.05061043]
[1741365729068,0.05198142,142.9,142.88,0.05231043]
[1741365729265,0.05198142,142.9,142.83,233.38835187]
[1741365729769,0.05198142,142.9,142.86,23.62835187]
[1741365729963,0.05198142,142.9,142.89,6.9982]
[1741365731069,8.142e-05,142.9,142.89,6.9982]
[1741365731277,8.142e-05,142.9,142.89,30.62655187]
[1741365731771,41.04,142.99,142.89,23.62835187]
[1741365731972,41.04,142.99,142.92,23.62835187]
[1741365732776,3.7107,143.0,142.92,23.62835187]
[1741365733076,0.04818436,142.97,142.94,0.05142828]
[1741365733572,0.04818436,142.97,142.96,6.9948]
[1741365735274,8.436e-05,142.97,142.96,6.9948]
[1741365735570,4.0641,143.01,142.95,23.62835187]
[1741365735773,3.7182,143.03,142.95,23.62835187]
[1741365736165,3.7182,143.03,142.93,23.62835187]
[1741365736872,0.05091755,142.99,142.97,0.05374091]
[1741365737563,0.05091755,142.99,142.98,6.9938]
[1741365737972,0.05091755,142.99,142.97,0.05374091]
[1741365738872,0.05091755,142.99,142.98,6.9938]
[1741365739067,0.05091755,142.99,142.97,0.05374091]
[1741365739467,0.05091755,142.99,142.97,7.04764091]
[1741365739668,0.05091755,142.99,142.97,0.05374091]
[1741365739865,0.05091755,142.99,142.98,6.9938]
[1741365741972,1.755e-05,142.99,142.98,6.9938]
[1741365742273,6.99331755,142.99,142.97,0.05374091]
[1741365742467,1.755e-05,142.99,142.91,23.62835187]
[1741365742672,40.98,143.01,142.91,23.62835187]
[1741365742873,40.98,143.01,142.87,43.71375187]
[1741365743077,40.98,143.01,142.88,45.0353]
[1741365743272,5.47813865,143.0,142.93,6.996]
[1741365743472,5.47813865,143.0,142.88,45.0353]
[1741365743778,0.0468784,142.98,142.97,6.9943]
[1741365744272,0.0468784,142.98,142.95,0.04556361]
[1741365745477,0.0468784,142.98,142.96,6.9944]
[1741365745683,0.0468784,142.98,142.95,0.04556361]
[1741365745973,0.0468784,142.98,142.87,27.63455187]
[1741365746178,6.9955,142.95,142.87,27.63455187]
[1741365746377,40.96,142.99,142.87,27.63455187]
[1741365746570,6.9962,142.94,142.9,6.9975]
[1741365746768,6.9962,142.94,142.87,23.62835187]
[1741365747075,0.04645141,142.92,142.91,6.9968]
[1741365747280,40.96,142.99,142.87,23.62835187]
[1741365747477,0.05131865,142.93,142.9,0.05378369]
[1741365747668,3.7176,142.98,142.87,23.62835187]
[1741365748073,0.0507871,142.94,142.91,0.05122168]
[1741365748476,0.0507871,142.94,142.93,6.9959]
[1741365748682,0.0507871,142.94,142.91,0.05122168]
[1741365749580,0.0507871,142.94,142.92,6.9966]
[1741365749981,0.0507871,142.94,142.91,0.05122168]
[1741365750581,0.0507871,142.94,142.91,7.04822168]
[1741365750782,0.0507871,142.94,142.91,0.05122168]
[1741365751183,0.0507871,142.94,142.93,6.9962]
[1741365751980,0.0507871,142.94,142.92,6.9966]
[1741365752184,0.0507871,142.94,142.91,0.05122168]
[1741365753071,0.0507871,142.94,142.93,6.9962]
[1741365753982,8.71e-05,142.94,142.93,30.62455187]
[1741365754382,3.7184,143.02,142.93,23.62835187]
[1741365754977,6.993,143.0,142.97,6.994]
[1741365755186,46.39287013,143.01,142.93,23.62835187]
[1741365755477,5.49287013,143.0,142.93,23.62835187]
[1741365755686,0.04414588,142.98,142.96,0.05060372]
[1741365756071,0.04414588,142.98,142.97,6.9943]
[1741365756979,0.04414588,142.98,142.96,7.04540372]
[1741365757287,7.03824588,142.98,142.96,0.05060372]
[1741365757489,0.04414588,142.98,142.96,0.05060372]
[1741365757684,0.04414588,142.98,142.9,23.62835187]
[1741365757880,0.04414588,142.98,142.87,64.52835187]
[1741365758083,64.52835187,143.01,142.87,23.62835187]
[1741365758281,23.62835187,142.98,142.84,27.58925187]
[1741365758775,0.04928508,142.92,142.9,0.04797087]
[1741365759089,6.9961,142.94,142.87,23.62835187]
[1741365759391,0.04465462,142.92,142.9,0.04827253]
[1741365760279,0.04465462,142.92,142.84,23.62835187]
[1741365760487,7.8104,142.95,142.84,23.62835187]
[1741365761084,5.4907192,142.94,142.84,23.62835187]
[1741365761276,6.9969,142.92,142.84,23.62835187]
[1741365761483,0.04447708,142.9,142.84,23.62835187]
[1741365761892,0.04447708,142.9,142.89,6.9982]
[1741365762588,3.9422,142.95,142.87,23.62835187]
[1741365762793,3.9422,142.95,142.9,23.62835187]
[1741365762982,6.9961,142.94,142.9,23.62835187]
[1741365763180,5.50433472,142.93,142.91,6.9972]
[1741365763491,5.50433472,142.93,142.87,23.62835187]
[1741365763690,5.55112219,142.93,142.91,0.04975976]
[1741365763991,5.50433472,142.92,142.91,0.04975976]
[1741365764292,5.50433472,142.92,142.91,7.04695976]
[1741365764891,5.50433472,142.92,142.91,0.04975976]
[1741365765096,0.04678747,142.93,142.91,0.04975976]
[1741365765892,5.51052776,142.92,142.91,0.04975976]
[1741365767001,5.51052776,142.92,142.91,7.04695976]
[1741365767299,0.04678747,142.93,142.91,0.04975976]
[1741365768096,0.04678747,142.93,142.92,6.9967]
[1741365768694,0.04678747,142.93,142.91,7.04685976]
[1741365768900,0.04678747,142.93,142.91,0.04975976]
[1741365769792,6.9967,142.92,142.91,0.04975976]
[1741365769994,0.04678747,142.93,142.91,0.04975976]
[1741365770302,6.9967,142.92,142.91,0.04975976]
[1741365770495,0.04678747,142.93,142.91,0.04975976]
[1741365772102,6.9967,142.92,142.91,0.04975976]
[1741365772302,0.04678747,142.93,142.8,274.34835187]
[1741365772500,7.9852,142.91,142.8,274.34835187]
[1741365772800,7.9852,142.91,142.88,6.9984]
[1741365773003,40.82,142.94,142.84,23.62835187]
[1741365773396,0.04757802,142.9,142.81,23.62835187]
[1741365773596,0.04757802,142.9,142.84,23.62835187]
[1741365773803,40.82,142.94,142.84,23.62835187]
[1741365774106,0.04898281,142.88,142.84,23.62835187]
[1741365774304,0.04898281,142.88,142.86,6.9994]
[1741365774800,0.04898281,142.88,142.8,274.34835187]
[1741365774998,0.04898281,142.88,142.8,233.52835187]
[1741365775398,0.04898281,142.88,142.87,6.9992]
[1741365776402,3.54898281,142.88,142.74,238.85347799]
[1741365776700,7.0008,142.84,142.76,23.62835187]
[1741365776900,0.04686083,142.82,142.8,7.0026]
[1741365777105,0.04686083,142.82,142.76,23.62835187]
[1741365777309,0.04686083,142.82,142.73,105.86941929]
[1741365777607,3.9677,142.83,142.73,105.86941929]
[1741365777808,0.04533954,142.79,142.73,105.86941929]
[1741365778004,40.84533954,142.79,142.73,112.87531929]
[1741365778204,40.84533954,142.79,142.73,105.86941929]
[1741365778505,23.62835187,142.76,142.73,0.83410918]
[1741365778705,31.29215187,142.78,142.71,115.00945134]
[1741365779104,0.05023777,142.76,142.71,115.00945134]
[1741365780009,23.62835187,142.75,142.71,115.00945134]
[1741365780204,40.8,142.74,142.71,115.00945134]
[1741365780404,0.05023777,142.76,142.71,115.00945134]
[1741365780603,40.8,142.73,142.71,115.00945134]
[1741365780811,40.8,142.73,142.62,77.683306]
[1741365781105,40.8,142.73,142.65,23.62835187]
[1741365781311,48.4438,142.78,142.65,40.78]
[1741365781609,48.4438,142.78,142.68,0.04792599]